fUST/lending_fUST_20240907
["ID","MTS","AMOUNT","RATE_DAILY","PERIOD"]
[337424124,1725662969240,-5555.324281,0.00025359,3]
[337424125,1725662969262,-500.0,0.00025369,2]
[337424126,1725662969285,-500.0,0.00025369,2]
[337424127,1725662969307,-500.0,0.00025369,2]
[337424128,1725662969328,-500.0,0.00025369,2]
[337424129,1725662969350,-529.14,0.00025369,2]
[337424130,1725662969372,-500.0,0.00025643,2]
[337424131,1725662969394,-348.19952007,0.00025643,2]
[337424132,1725662969417,-500.0,0.00025643,2]
[337424133,1725662969441,-500.0,0.00025643,2]
[337424134,1725662969466,-529.14,0.00025643,2]
[337424135,1725662969488,-500.0,0.00025917,2]
[337424136,1725662969510,-500.0,0.00025917,2]
[337424137,1725662969533,-152.5,0.00025917,2]
[337424138,1725662969555,-529.14,0.00025917,2]
[337424139,1725662969577,-500.0,0.00026191,2]
[337424140,1725662969601,-199.6,0.00026191,2]
[337424141,1725662969624,-529.14,0.00026191,2]
[337424142,1725662969649,-500.0,0.00026465,2]
[337424143,1725662969673,-529.14,0.00026465,2]
[337424144,1725662969696,-500.0,0.00026739,2]
[337424145,1725662969719,-529.14,0.00026739,2]
[337424146,1725662969741,-500.0,0.00027013,2]
[337424147,1725662969763,-529.14,0.00027013,2]
[337424148,1725662969785,-500.0,0.00027287,2]
[337424149,1725662969808,-529.14,0.00027287,2]
[337424150,1725662969832,-500.0,0.00027561,2]
[337424151,1725662969856,-78.00461258,0.00027561,2]
[337424152,1725662970183,-451.13538742,0.00027561,2]
[337424153,1725662970209,-500.0,0.00027835,2]
[337424154,1725662970236,-529.14,0.00027835,2]
[337424155,1725662970263,-500.0,0.00028109,2]
[337424156,1725662970288,-529.14,0.00028109,2]
[337424157,1725662970314,-500.0,0.00028383,2]
[337424158,1725662970337,-529.14,0.00028383,2]
[337424159,1725662970362,-258.39,0.00028657,2]
[337424160,1725662970387,-529.14,0.00028657,2]
[337424161,1725662970413,-529.14,0.00028931,2]
[337424162,1725662970436,-529.14,0.00029205,2]
[337424163,1725662970460,-529.14,0.00029479,2]
[337424164,1725662970484,-529.14,0.00029753,2]
[337424165,1725662970509,-529.14,0.00030027,2]
[337424166,1725662970534,-529.26899509,0.00030301,2]
[337424167,1725662970560,-500.0,0.00030327,7]
[337424168,1725662970585,-1411.82549905,0.00034108,24]
[337424169,1725662970609,-4595.63,0.00035616,3]
[337424170,1725662970633,-4320.26,0.00035616,3]
[337424171,1725662970654,-3600.22,0.00035616,3]
[337424172,1725662970677,-58.18822333,0.00041095,120]
[337424173,1725663026416,-500.0,0.00023989,2]
[337424174,1725663026441,-500.0,0.00023999,2]
[337424175,1725663026467,-172.86,0.00023999,2]
[337424176,1725663026491,-502.01,0.00024273,2]
[337424177,1725663026518,-940.81177667,0.00041095,120]
[337424178,1725663026544,-500.0,0.00043835,120]
[337424179,1725663026571,-293.85475106,0.00044109,120]
[337424180,1725663026597,-620.02,0.00046575,120]
[337424181,1725663026624,-30007.4790308,0.00054774,6]
[337424182,1725663026653,-11110.648562,0.00054774,6]
[337424183,1725663026678,-781.3,0.00054794,120]
[337424184,1725663026704,-2734.37931267,0.00057534,2]
[337424185,1725663026729,-1666.66,0.00057534,120]
[337424186,1725663026754,-249.58,0.00059647,30]
[337424187,1725663026779,-1666.66,0.00060273,120]
[337424188,1725663026805,-1666.66,0.00063013,120]
[337424189,1725663026830,-1666.66,0.00065753,120]
[337424190,1725663026855,-500.0,0.00067999,120]
[337424191,1725663026879,-500.0,0.00067999,120]
[337424192,1725663026907,-15003.7395154,0.00068263,9]
[337424193,1725663026934,-5555.324281,0.00068263,9]
[337424194,1725663026959,-500.0,0.00068273,120]
[337424195,1725663026985,-500.00004029,0.00068273,120]
[337424196,1725663027010,-1666.66,0.00068493,120]
[337424197,1725663027039,-500.0,0.00068547,120]
[337424198,1725663027066,-500.0,0.00068821,120]
[337424199,1725663027091,-500.0,0.00069095,120]
[337424200,1725663027118,-500.0,0.00069369,120]
[337424201,1725663027144,-500.0,0.00069643,120]
[337424202,1725663027173,-500.0,0.00069917,120]
[337424203,1725663027198,-500.0,0.00070191,120]
[337424204,1725663027226,-500.0,0.00070465,120]
[337424205,1725663027251,-500.0,0.00070739,120]
[337424206,1725663027276,-500.0,0.00071013,120]
[337424207,1725663027301,-1666.66,0.00071232,120]
[337424208,1725663027326,-500.0,0.00071287,120]
[337424209,1725663027352,-500.0,0.00071561,120]
[337424210,1725663027376,-500.0,0.00071835,120]
[337424211,1725663027402,-500.0,0.00072109,120]
[337424212,1725663027426,-500.0,0.00072383,120]
[337424213,1725663027451,-500.0,0.00072657,120]
[337424214,1725663027476,-500.0,0.00072931,120]
[337424215,1725663027501,-384.84316702,0.00073205,120]
[337424216,1725663027527,-1666.66,0.00073972,120]
[337424217,1725663027552,-500.0,0.00074999,60]
[337424218,1725663027579,-500.0,0.00074999,120]
[337424219,1725663027605,-500.0,0.00075273,60]
[337424220,1725663027634,-500.0,0.00075273,120]
[337424221,1725663027661,-172.973536,0.00075579,120]
[337424222,1725663027686,-1666.66,0.00076712,120]
[337424223,1725663027710,-1666.66,0.00079452,120]
[337424224,1725663027734,-1003.9814,0.00079999,120]
[337424225,1725663027759,-1795.438922,0.0008,120]
[337424226,1725663027785,-1666.66,0.00082191,120]
[337424227,1725663027811,-1666.66,0.00084931,120]
[337424228,1725663027836,-1666.66,0.00087671,120]
[337424229,1725663027861,-1666.66,0.0009041,120]
[337424230,1725663027885,-152.76035625,0.00091661,120]
[337424231,1725663027910,-1666.66,0.0009315,120]
[337424232,1725663027935,-13534.333818,0.000945,120]
[337424233,1725663027960,-1666.66,0.0009589,120]
[337424234,1725663027984,-2183.60601199,0.000965,120]
[337424235,1725663028009,-500.0,0.00098499,120]
[337424236,1725663028035,-1666.66,0.0009863,120]
[337424237,1725663028060,-342.733154,0.00098773,120]
[337424238,1725663028086,-150.0,0.0009939,120]
[337424239,1725663028111,-150.0,0.000999,120]
[337424240,1725663028136,-150.0,0.001009,120]
[337424241,1725663028164,-1666.66,0.00101369,120]
[337424242,1725663028190,-152.76035625,0.00101661,120]
[337424243,1725663028215,-200.0,0.001019,120]
[337424244,1725663028240,-1666.66,0.00104109,120]
[337424245,1725663028265,-2000.0,0.001065,120]
[337424246,1725663028289,-1666.66,0.00106849,120]
[337424247,1725663028313,-2500.15,0.00109569,3]
[337424248,1725663028339,-15003.7395154,0.00109579,20]
[337424249,1725663028365,-5555.324281,0.00109579,20]
[337424250,1725663028388,-1666.66,0.00109589,120]
[337424251,1725663028413,-152.76035625,0.00111661,120]
[337424252,1725663028437,-1666.66,0.00112328,120]
[337424253,1725663028556,-30007.4790308,0.00112856,20]
[337424254,1725663028583,-11110.648562,0.00112856,21]
[337424255,1725663028608,-834.54,0.00113,60]
[337424256,1725663028632,-166.77,0.00113,60]
[337424257,1725663028657,-1666.66,0.00115068,120]
[337424258,1725663028681,-2000.0,0.001165,120]
[337424259,1725663028705,-1666.66,0.00117808,120]
[337424260,1725663028730,-1666.82,0.00120547,120]
[337424261,1725663028755,-152.76035625,0.00121661,120]
[337424262,1725663028780,-2000.0,0.001265,120]
[337424263,1725663028804,-152.76035625,0.00131661,120]
[337424264,1725663028829,-2000.0,0.001365,120]
[337424265,1725663028853,-152.76035625,0.00141661,120]
[337424266,1725663028877,-614.0,0.001434,30]
[337424267,1725663028902,-2000.0,0.001465,120]
[337424268,1725663028927,-152.76035625,0.00151661,120]
[337424269,1725663028951,-2000.0,0.001565,120]
[337424270,1725663028975,-10000.0,0.001599,120]
[337424271,1725663029000,-152.76035625,0.00161661,120]
[337424272,1725663029024,-2000.0,0.001665,120]
[337424273,1725663029056,-834.54,0.00167,60]
[337424274,1725663029081,-166.77,0.00167,60]
[337424275,1725663029107,-150.112234,0.001675,25]
[337424300,1725663032308,-152.76035625,0.00171661,120]
[337424302,1725663032318,-347.23964375,0.0017299,120]
[337424312,1725663032414,-582.85,0.0017299,120]
[337424331,1725663038444,-9069.91035625,0.0017299,120]
[337424332,1725663038453,-20000.0,0.0017377,120]
[337424333,1725663038462,-2083.46,0.0017386,3]
[337424334,1725663038471,-21996.79716536,0.0017387,120]
[337424335,1725663038482,-405.85748006,0.0017387,120]
[337424336,1725663038541,-42266.13900759,0.0017387,120]
[337424347,1725663040582,-3821.37627103,0.0017387,120]
[337424367,1725663046507,-256128.31679432,0.0017387,120]
[337424368,1725663046520,-793.85475106,0.0017387,120]
[337424369,1725663046531,-231619.77758605,0.0017387,120]
[337424370,1725663046543,-1753.59613248,0.0017387,120]
[337424407,1725663853079,-158.138149,0.00020986,2]
[337424409,1725663938116,-191.83303239,0.00023999,2]
[337424410,1725663938140,-158.138149,0.00027092,2]
[337424411,1725663938160,-53.87494707,0.00033197,2]
[337424412,1725663942110,-104.26320193,0.00033197,2]
[337424413,1725663942133,-158.138149,0.00039302,2]
[337424414,1725663942158,-5.56691055,0.00041135,2]
[337424417,1725664031111,-300.0,0.00041481,30]
[337424418,1725664031135,-153.0,0.00041482,2]
[337424419,1725664031159,-306.0,0.00041482,2]
[337424420,1725664031180,-153.0,0.00041482,2]
[337424421,1725664031201,-153.0,0.00041482,2]
[337424422,1725664031222,-153.0,0.00041482,2]
[337424423,1725664031245,-153.0,0.00041482,2]
[337424424,1725664031267,-153.0,0.00041482,2]
[337424425,1725664031289,-153.0,0.00041482,2]
[337424426,1725664031309,-153.0,0.00041482,2]
[337424427,1725664031329,-306.0,0.00041482,2]
[337424428,1725664031350,-381.2215108,0.00041482,2]
[337424429,1725664031375,-153.0,0.00041541,2]
[337424430,1725664031400,-68.70751866,0.00041541,2]
[337424431,1725664049106,-84.29248134,0.00041541,2]
[337424432,1725664049128,-306.0,0.00041541,2]
[337424433,1725664049149,-277.52633161,0.00041541,2]
[337424434,1725664052095,-28.47366839,0.00041541,2]
[337424435,1725664052120,-189.98658201,0.0004272,2]
[337424436,1725664133232,-160.090472,0.00020986,2]
[337424437,1725664134426,-160.090472,0.0002781,2]
[337424438,1725664151199,-160.090472,0.00034633,2]
[337424439,1725664151225,-160.090472,0.00041457,120]
[337424440,1725664151250,-7000.0,0.000425,50]
[337424441,1725664151271,-379.73250589,0.0004272,2]
[337424442,1725664151292,-17631.6061852,0.00043381,2]
[337424443,1725664151440,-500.0,0.00043835,120]
[337424444,1725664151462,-500.0,0.00044109,120]
[337424445,1725664151486,-239.41983006,0.00044383,120]
[337424446,1725664151507,-167.41145,0.00044397,2]
[337424447,1725664151527,-160.090472,0.0004828,120]
[337424448,1725664151547,-150.908,0.00048475,2]
[337424449,1725664151573,-160.090472,0.00055104,120]
[337424450,1725664151594,-261.5129951,0.00057897,30]
[337424451,1725664151615,-160.154851,0.00058073,2]
[337424452,1725664151635,-160.090472,0.00061928,120]
[337424453,1725664151656,-337.5,0.00068493,120]
[337424454,1725664151676,-160.090472,0.00068751,120]
[337424455,1725664151696,-337.5,0.00072098,120]
[337424456,1725664151717,-160.090472,0.00075575,120]
[337424457,1725664151737,-337.5,0.00075703,120]
[337424458,1725664151758,-337.5,0.00079308,120]
[337424459,1725664151779,-153.0,0.00081697,120]
[337424460,1725664151799,-153.0,0.00081697,120]
[337424461,1725664151821,-153.0,0.00081697,120]
[337424462,1725664151842,-153.0,0.00081697,120]
[337424463,1725664151862,-153.0,0.00081797,120]
[337424464,1725664151883,-153.0,0.00081797,120]
[337424465,1725664151904,-153.0,0.00081797,120]
[337424466,1725664151925,-153.0,0.00081797,120]
[337424467,1725664151946,-153.0,0.00081893,120]
[337424468,1725664151969,-153.0,0.00081893,120]
[337424469,1725664151989,-153.0,0.00081893,120]
[337424470,1725664152011,-153.0,0.00081893,120]
[337424471,1725664152037,-153.0,0.00081973,120]
[337424472,1725664152060,-153.0,0.00081973,120]
[337424473,1725664152081,-153.0,0.00081973,120]
[337424474,1725664152105,-153.0,0.00081973,120]
[337424475,1725664152127,-153.0,0.00082074,120]
[337424476,1725664152150,-153.0,0.00082074,120]
[337424477,1725664152172,-153.0,0.00082074,120]
[337424478,1725664152193,-153.0,0.00082074,120]
[337424479,1725664152215,-379.94135337,0.00082175,28]
[337424480,1725664152237,-160.090472,0.00082398,120]
[337424481,1725664152258,-337.5,0.00082913,120]
[337424482,1725664152281,-337.5,0.00086518,120]
[337424483,1725664152304,-254.58534761,0.00088999,120]
[337424484,1725664152328,-3500.0,0.00088999,120]
[337424485,1725664152349,-735.38255481,0.00089,120]
[337424486,1725664152370,-6537.47812974,0.00089,120]
[337424487,1725664169095,-2698.63156453,0.00089,120]
[337424488,1725664169120,-160.090472,0.00089222,120]
[337424489,1725664169143,-3500.0,0.00089273,120]
[337424490,1725664169165,-1365.62505721,0.00089547,120]
[337424491,1725664169188,-2446.10228382,0.000899,120]
[337424492,1725664169211,-51923.50228552,0.0009,120]
[337424495,1725664231102,-153.0,0.0008159,120]
[337424496,1725664231128,-153.0,0.0008159,120]
[337424497,1725664231155,-153.0,0.0008159,120]
[337424498,1725664231180,-153.0,0.0008159,120]
[337424499,1725664231206,-10000.0,0.00088,120]
[337424500,1725664231231,-148076.49771448,0.0009,120]
[337424501,1725664231257,-337.5,0.00090123,120]
[337424502,1725664231281,-40974.00228552,0.00091,120]
[337424535,1725664237230,-159025.99771448,0.00091,120]
[337424536,1725664237256,-152.76035624,0.00091661,120]
[337424537,1725664237282,-40821.24192928,0.00092,120]
[337424555,1725664238758,-44.87179205,0.00092,120]
[337424558,1725664238769,-5372.75386274,0.00092,120]
[337424565,1725664239705,-18603.80437426,0.00092,120]
[337424566,1725664239722,-16451.08164707,0.00092,120]
[337424588,1725664240764,-24.27336116,0.00092,120]
[337424600,1725664242062,-118681.97303344,0.00092,120]
[337424601,1725664242089,-81318.02696656,0.00093,120]
[337424605,1725664244065,-29.77425127,0.00093,120]
[337424606,1725664244108,-118652.19878217,0.00093,120]
[337424607,1725664244135,-337.5,0.00093727,120]
[337424608,1725664244161,-81010.30121783,0.00094,120]
[337424634,1725664246742,-40.87946076,0.00094,120]
[337424635,1725664247050,-74.20209033,0.00094,120]
[337424637,1725664247061,-35298.25960795,0.00094,120]
[337424653,1725664623338,-160.476827,0.00020986,2]
[337424663,1725664764507,-302.21432435,0.00022,2]
[337424664,1725664765212,-302.21432435,0.0002222,2]
[337424665,1725664766641,-453.32148653,0.000231,4]
[337424666,1725664767755,-181.48911055,0.0002332,4]
[337424667,1725664769489,-302.21432435,0.0002244,2]
[337424668,1725664770256,-302.21432435,0.0002266,2]
[337424669,1725664772219,-271.83237598,0.0002332,4]
[337424670,1725664772858,-453.32148653,0.0002354,4]
[337424715,1725665146302,-155.68522122,0.00026,30]
[337424720,1725665199940,-160.476827,0.00020986,2]
[337424724,1725665238199,-160.476827,0.00033875,2]
[337424725,1725665238225,-661.71646445,0.00034549,24]
[337424726,1725665252130,-275.30845701,0.00034549,24]
[337424727,1725665252153,-300.0,0.00045,15]
[337424728,1725665252175,-351.0,0.00045,30]
[337424729,1725665252196,-300.0,0.00045,15]
[337424730,1725665252231,-188.08559893,0.00045,20]
[337424738,1725665322239,271.83237598,0.00023,30]
[337424745,1725665341377,-300.0,0.00022999,2]
[337424746,1725665346093,-300.0,0.00022999,2]
[337424747,1725665346115,-13707.24137026,0.00023,30]
[337424748,1725665346137,-420.0,0.00025299,2]
[337424749,1725665346159,-180.0,0.00027829,2]
[337424750,1725665346180,-111.91440107,0.00045,20]
[337424751,1725665346205,-160.476827,0.00046764,120]
[337424752,1725665346348,-330.0,0.0005,30]
[337424753,1725665346370,-300.0,0.0005,30]
[337424754,1725665346391,-300.0,0.0005,30]
[337424755,1725665346412,-330.0,0.0005,60]
[337424756,1725665346433,-330.0,0.00055,60]
[337424757,1725665346456,-330.0,0.00055,30]
[337424758,1725665346478,-151.12941269,0.00058045,2]
[337424759,1725665346501,-5307.96037506,0.00058489,2]
[337424760,1725665346523,-160.476827,0.00059653,120]
[337424761,1725665346546,-318.2281358,0.00062932,2]
[337424762,1725665346568,-231.859692,0.00065688,30]
[337424763,1725665346589,-152.0,0.00065753,120]
[337424764,1725665346612,-403.376157,0.00068493,120]
[337424765,1725665346635,-403.376157,0.00072098,120]
[337424766,1725665346659,-160.476827,0.00072542,120]
[337424767,1725665346682,-403.376157,0.00075703,120]
[337424768,1725665346704,-403.376157,0.00079308,120]
[337424769,1725665346726,-403.376157,0.00082913,120]
[337424770,1725665346751,-160.476827,0.00085431,120]
[337424771,1725665346774,-403.376157,0.00086518,120]
[337424772,1725665346798,-3000.0,0.00087,120]
[337424773,1725665346821,-2000.0,0.000875,120]
[337424774,1725665346845,-1021.77296312,0.000875,120]
[337424785,1725665429113,-6000.0,0.000865,120]
[337424786,1725665429139,-200.07766563,0.00087325,120]
[337424787,1725665429165,-978.22703688,0.000875,120]
[337424788,1725665429191,-2000.0,0.000875,120]
[337424789,1725665429216,-200.0,0.0009,120]
[337424790,1725665429242,-403.376157,0.00090123,120]
[337424791,1725665429268,-2000.0,0.000935,120]
[337424792,1725665429293,-2000.0,0.000935,120]
[337424793,1725665429318,-403.376157,0.00093727,120]
[337424794,1725665429343,-83576.35762313,0.00094,120]
[337424795,1725665429368,-200000.0,0.00095,120]
[337424796,1725665429393,-200000.0,0.00096,120]
[337424797,1725665429418,-200000.0,0.00097,120]
[337424798,1725665429444,-403.376157,0.00097332,120]
[337424799,1725665429470,-152168.0,0.00098,120]
[337424800,1725665429495,-152.76035624,0.00098249,120]
[337424801,1725665429522,-160.476827,0.0009832,120]
[337424802,1725665429546,-150.0,0.000999,120]
[337424803,1725665429571,-150.0,0.000999,120]
[337424804,1725665429597,-332.44868426,0.000999,28]
[337424805,1725665429623,-553.27,0.00099999,120]
[337424806,1725665429648,-3500.0,0.00099999,120]
[337424807,1725665429679,-500.0,0.00099999,120]
[337424808,1725665429704,-500.0,0.00099999,120]
[337424809,1725665429730,-16452.0,0.001,120]
[337424810,1725665429760,-150.0,0.001,120]
[337424811,1725665429789,-29829.40896844,0.001,120]
[337424812,1725665429815,-3500.0,0.00100273,120]
[337424813,1725665429841,-500.0,0.00100273,120]
[337424814,1725665429870,-3500.0,0.00100547,120]
[337424815,1725665429899,-500.0,0.00100547,120]
[337424816,1725665429926,-3500.0,0.00100821,120]
[337424817,1725665429953,-500.0,0.00100821,120]
[337424818,1725665429979,-3000.0,0.00100833,120]
[337424819,1725665430005,-150.0,0.001009,120]
[337424820,1725665430031,-150.0,0.001009,120]
[337424821,1725665430057,-403.376157,0.00100937,120]
[337424822,1725665430082,-3500.0,0.00101095,120]
[337424823,1725665430108,-500.0,0.00101095,120]
[337424824,1725665430133,-3500.0,0.00101369,120]
[337424825,1725665430159,-500.0,0.00101369,120]
[337424826,1725665430184,-3500.0,0.00101643,120]
[337424827,1725665430210,-500.0,0.00101643,120]
[337424828,1725665430235,-200.0,0.001019,120]
[337424829,1725665430260,-200.0,0.001019,120]
[337424830,1725665430288,-3500.0,0.00101917,120]
[337424831,1725665430314,-500.0,0.00101917,120]
[337424832,1725665430340,-600.0,0.00101999,120]
[337424833,1725665430366,-500.0,0.00101999,120]
[337424834,1725665430392,-240.36,0.00101999,120]
[337424835,1725665430420,-3500.0,0.00102191,120]
[337424836,1725665430447,-500.0,0.00102191,120]
[337424837,1725665430472,-600.0,0.00102273,120]
[337424838,1725665430498,-500.0,0.00102273,120]
[337424839,1725665430526,-3500.0,0.00102465,120]
[337424840,1725665430552,-500.0,0.00102465,120]
[337424841,1725665430580,-600.0,0.00102547,120]
[337424842,1725665430607,-500.0,0.00102547,120]
[337424843,1725665430636,-3500.0,0.00102739,120]
[337424844,1725665430665,-500.0,0.00102739,120]
[337424845,1725665430692,-600.0,0.00102821,120]
[337424846,1725665430720,-285.9983546,0.00102821,120]
[337424847,1725665430853,-3500.0,0.00103013,120]
[337424848,1725665430880,-500.0,0.00103013,120]
[337424849,1725665430907,-484.68353456,0.00103095,120]
[337424850,1725665430932,-3500.0,0.00103287,120]
[337424851,1725665430959,-500.0,0.00103287,120]
[337424852,1725665430984,-3500.0,0.00103561,120]
[337424853,1725665431010,-500.0,0.00103561,120]
[337424854,1725665431037,-3500.0,0.00103835,120]
[337424855,1725665431064,-500.0,0.00103835,120]
[337424856,1725665431093,-3500.0,0.00104109,120]
[337424857,1725665431119,-500.0,0.00104109,120]
[337424858,1725665431147,-347.163215,0.00104383,120]
[337424861,1725665431176,-500.0,0.00104383,120]
[337424863,1725665431202,-2000.0,0.001045,120]
[337424864,1725665431228,-403.376157,0.00104542,120]
[337424865,1725665431254,-500.0,0.00104656,120]
[337424866,1725665431279,-500.0,0.0010493,120]
[337424867,1725665431305,-500.0,0.00105204,120]
[337424868,1725665431331,-578.87667883,0.00105478,120]
[337424869,1725665431357,-2000.0,0.001055,120]
[337424870,1725665431383,-403.376157,0.00108147,120]
[337424871,1725665431408,-152.76035624,0.00108249,120]
[337424874,1725665431442,-814.28,0.0010899,120]
[337424878,1725665431473,-160.476827,0.00111208,120]
[337424884,1725665431501,-403.376157,0.00111752,120]
[337424888,1725665431529,-3955.14,0.0011299,3]
[337424892,1725665431555,-6156.0,0.00113,120]
[337424896,1725665431580,-167.41145,0.00113027,120]
[337424900,1725665431606,-1000.0,0.00113189,120]
[337424904,1725665431632,-4746.16,0.0011395,3]
[337424908,1725665431660,-2934.02932319,0.0011396,21]
[337424970,1725665432224,-91.35481016,0.00034723,15]
[337424999,1725665434285,-3295.95,0.0011299,3]
[337425000,1725665434314,-7211.39229421,0.0011396,21]
[337425001,1725665434343,-2777.66214078,0.0011396,21]
[337425002,1725665434369,-733.0,0.00114,120]
[337425003,1725665434398,-6156.0,0.00114,120]
[337425004,1725665434425,-1000.0,0.00114389,120]
[337425005,1725665434455,-20290.8432348,0.00114479,21]
[337425006,1725665434483,-5555.32428156,0.00114479,21]
[337425007,1725665434511,-200.0,0.00114499,7]
[337425008,1725665434539,-1000.0,0.00114499,120]
[337425009,1725665434567,-602.41,0.00114499,120]
[337425010,1725665434593,-500.0,0.00114499,120]
[337425011,1725665434619,-3000.0,0.00114667,120]
[337425012,1725665434646,-1000.0,0.00114773,120]
[337425013,1725665434675,-500.72987685,0.00114773,120]
[337425014,1725665434703,-10145.4216174,0.0011499,21]
[337425015,1725665434732,-2777.66214078,0.0011499,21]
[337425016,1725665434761,-733.0,0.00115,120]
[337425017,1725665434791,-6156.0,0.00115,120]
[337425018,1725665434817,-677.78203142,0.00115,120]
[337425019,1725665434844,-1000.0,0.00115047,120]
[337425020,1725665434869,-1000.0,0.00115321,120]
[337425021,1725665434895,-403.376157,0.00115357,120]
[337425022,1725665434921,-227.88925604,0.00115595,120]
[337425023,1725665434947,-152.76035624,0.00118249,120]
[337425024,1725665434974,-403.376157,0.00118962,120]
[337425025,1725665435002,-403.376157,0.00122567,120]
[337425026,1725665435030,-1000.0,0.00123189,120]
[337425027,1725665435058,-160.476827,0.00124097,120]
[337425028,1725665435083,-2000.0,0.001245,120]
[337425029,1725665435110,-999.782,0.001255,120]
[337425030,1725665435135,-403.376157,0.00126172,120]
[337425031,1725665435163,-152.76035624,0.00128249,120]
[337425032,1725665435188,-3000.0,0.001285,120]
[337425033,1725665435214,-403.376157,0.00129777,120]
[337425034,1725665435239,-4000.0,0.0013,120]
[337425035,1725665435264,-1442.40774405,0.001308,90]
[337425036,1725665435290,-1000.0,0.00133189,120]
[337425037,1725665435316,-403.376157,0.00133381,120]
[337425038,1725665435344,-2000.0,0.001355,120]
[337425039,1725665435371,-2000.0,0.001365,120]
[337425040,1725665435398,-180.34806042,0.00136886,120]
[337425041,1725665435426,-20290.8432348,0.00136966,27]
[337425042,1725665435453,-5555.32428156,0.00136966,27]
[337425043,1725665435487,-10145.4216174,0.00136976,27]
[337425044,1725665435515,-2777.66214078,0.00136976,27]
[337425045,1725665435543,-1000.0,0.00136986,120]
[337425046,1725665435567,-1000.0,0.00136986,120]
[337425047,1725665435593,-1000.0,0.00136986,120]
[337425048,1725665435625,-1000.0,0.00136986,120]
[337425049,1725665435652,-1000.0,0.00136986,120]
[337425050,1725665435679,-1000.0,0.00136986,120]
[337425051,1725665435704,-1000.0,0.00136986,120]
[337425052,1725665435732,-1000.0,0.00136986,120]
[337425053,1725665435762,-1000.0,0.00136986,120]
[337425054,1725665435791,-1000.0,0.00136986,120]
[337425055,1725665435921,-1000.0,0.00136986,120]
[337425056,1725665435947,-1000.0,0.00136986,120]
[337425057,1725665435975,-1000.0,0.00136986,120]
[337425058,1725665436002,-1000.0,0.00136986,120]
[337425059,1725665436035,-1000.0,0.00136986,120]
[337425060,1725665436062,-1000.0,0.00136986,120]
[337425061,1725665436087,-1000.0,0.00136986,120]
[337425062,1725665436113,-1000.0,0.00136986,120]
[337425063,1725665436138,-1000.0,0.00136986,120]
[337425064,1725665436164,-1009.8,0.00136986,120]
[337425065,1725665436190,-160.476827,0.00136986,120]
[337425066,1725665436216,-403.376157,0.00136986,120]
[337425067,1725665436242,-152.76035624,0.00138249,120]
[337425068,1725665436267,-1153.1962802,0.0014,120]
[337425069,1725665436293,-410.1087154,0.00141482,120]
[337425070,1725665436322,-410.1087154,0.00141482,120]
[337425071,1725665436349,-3000.0,0.00142333,120]
[337425072,1725665436375,-2000.0,0.001445,120]
[337425073,1725665436401,-2000.0,0.001445,120]
[337425074,1725665436427,-1999.78020101,0.001445,120]
[337425075,1725665436453,-1000.0,0.00146499,120]
[337425076,1725665436479,-500.0,0.00146499,120]
[337425077,1725665436506,-500.0,0.00146499,60]
[337425078,1725665436533,-2000.0,0.001465,120]
[337425079,1725665436558,-2000.0,0.001465,120]
[337425080,1725665436584,-2000.0,0.001465,120]
[337425081,1725665436610,-1000.0,0.00146773,120]